[Event "*** Titled Tuesday Blitz"]
[Site "Chess.com"]
[Date "2019.06.04"]
[Round "1"]
[White "Poghosyan_Suren"]
[Black "H3nriqueTV"]
[Result "1-0"]
[WhiteElo "2562"]
[BlackElo "2182"]
[TimeControl "180+2"]
[EndTime "13:15:06 PDT"]
[Termination "Poghosyan_Suren won by checkmate"]

1. d4 {[%clk 0:03:00.4]} 1... d5 {[%clk 0:03:00.8]} 2. c4 {[%clk 0:03:00.4]}
2... c6 {[%clk 0:03:00.7]} 3. Nf3 {[%clk 0:02:57.6]} 3... Nf6 {[%clk 0:03:01.6]}
4. Qc2 {[%clk 0:02:43.8]} 4... Nbd7 {[%clk 0:02:48.3]} 5. g3 {[%clk 0:02:42.6]}
5... e6 {[%clk 0:02:48.7]} 6. Bg2 {[%clk 0:02:42.7]} 6... Be7 {[%clk 0:02:48.1]}
7. O-O {[%clk 0:02:44.2]} 7... O-O {[%clk 0:02:49.9]} 8. Nbd2 {[%clk 0:02:45.3]}
8... Re8 {[%clk 0:02:51.2]} 9. e4 {[%clk 0:02:46]} 9... dxe4 {[%clk 0:02:52.2]}
10. Nxe4 {[%clk 0:02:47.9]} 10... Nxe4 {[%clk 0:02:53.6]} 11. Qxe4 {[%clk
0:02:49.8]} 11... Nf6 {[%clk 0:02:55.2]} 12. Qe2 {[%clk 0:02:50.1]} 12... h6
{[%clk 0:02:55.9]} 13. Bf4 {[%clk 0:02:50.2]} 13... Bd7 {[%clk 0:02:51.2]} 14.
Ne5 {[%clk 0:02:48.4]} 14... Rc8 {[%clk 0:02:52]} 15. Rfd1 {[%clk 0:02:41.9]}
15... Nh7 {[%clk 0:02:33]} 16. h4 {[%clk 0:02:41.1]} 16... Nf6 {[%clk 0:02:21]}
17. Rac1 {[%clk 0:02:38.1]} 17... Bf8 {[%clk 0:02:20.7]} 18. Qc2 {[%clk
0:02:27.7]} 18... Qe7 {[%clk 0:02:16.2]} 19. Re1 {[%clk 0:02:23.2]} 19... Red8
{[%clk 0:02:17.2]} 20. Rcd1 {[%clk 0:02:23.9]} 20... Be8 {[%clk 0:02:17.4]} 21.
g4 {[%clk 0:02:22.8]} 21... Nd7 {[%clk 0:02:17.7]} 22. g5 {[%clk 0:02:22.3]}
22... Nxe5 {[%clk 0:02:12.2]} 23. Rxe5 {[%clk 0:02:23]} 23... hxg5 {[%clk
0:02:10.3]} 24. hxg5 {[%clk 0:02:23.6]} 24... g6 {[%clk 0:02:11.4]} 25. Ra5
{[%clk 0:02:12.1]} 25... a6 {[%clk 0:02:10.9]} 26. Be5 {[%clk 0:02:13.2]} 26...
Bg7 {[%clk 0:02:11.9]} 27. Qe2 {[%clk 0:02:10.2]} 27... Qxg5 {[%clk 0:02:10.8]}
28. Bc7 {[%clk 0:02:08.9]} 28... Qe7 {[%clk 0:02:09.4]} 29. Bxd8 {[%clk
0:02:09.4]} 29... Rxd8 {[%clk 0:02:10.2]} 30. d5 {[%clk 0:02:06.7]} 30... cxd5
{[%clk 0:02:10.6]} 31. Raxd5 {[%clk 0:02:06.1]} 31... Rxd5 {[%clk 0:02:10.5]}
32. cxd5 {[%clk 0:02:06.8]} 32... Bb5 {[%clk 0:02:11]} 33. Qe3 {[%clk
0:01:55.5]} 33... Bc4 {[%clk 0:02:05.4]} 34. d6 {[%clk 0:01:55.9]} 34... Qd7
{[%clk 0:02:06.7]} 35. Qc5 {[%clk 0:01:53.5]} 35... Bb5 {[%clk 0:02:05]} 36. b3
{[%clk 0:01:50.1]} 36... Bc6 {[%clk 0:02:04.3]} 37. Bxc6 {[%clk 0:01:49.5]}
37... bxc6 {[%clk 0:02:05.7]} 38. Rc1 {[%clk 0:01:33.8]} 38... Qd8 {[%clk
0:01:57.1]} 39. Qxc6 {[%clk 0:01:28.8]} 39... Qg5+ {[%clk 0:01:58.1]} 40. Kf1
{[%clk 0:01:30.3]} 40... Bf6 {[%clk 0:01:42.4]} 41. d7 {[%clk 0:01:29.3]} 41...
Bd8 {[%clk 0:01:43.6]} 42. Rd1 {[%clk 0:01:19.9]} 42... Kg7 {[%clk 0:01:44]} 43.
Qxa6 {[%clk 0:01:15.4]} 43... Qh4 {[%clk 0:01:41.6]} 44. Qc4 {[%clk 0:01:08.5]}
44... Qh3+ {[%clk 0:01:34.8]} 45. Ke2 {[%clk 0:01:08.9]} 45... Qh5+ {[%clk
0:01:36]} 46. Kd2 {[%clk 0:01:03.4]} 46... Qf5 {[%clk 0:01:34.5]} 47. Qd4+
{[%clk 0:00:56.4]} 47... e5 {[%clk 0:01:29.5]} 48. Qc5 {[%clk 0:00:27.4]} 48...
Qxd7+ {[%clk 0:01:26.4]} 49. Kc2 {[%clk 0:00:26.9]} 49... Qf5+ {[%clk
0:01:26.4]} 50. Rd3 {[%clk 0:00:27.9]} 50... Bf6 {[%clk 0:01:21.7]} 51. f3
{[%clk 0:00:28]} 51... Qf4 {[%clk 0:01:20.8]} 52. Qe3 {[%clk 0:00:28.9]} 52...
Qh2+ {[%clk 0:01:20.4]} 53. Qd2 {[%clk 0:00:29.5]} 53... Qh3 {[%clk 0:01:18.2]}
54. Qe2 {[%clk 0:00:30.5]} 54... Qc8+ {[%clk 0:01:18.4]} 55. Kb1 {[%clk
0:00:31.6]} 55... Qc5 {[%clk 0:01:09.9]} 56. a4 {[%clk 0:00:32.9]} 56... Qa3
{[%clk 0:01:08.9]} 57. Qb2 {[%clk 0:00:33.2]} 57... Qb4 {[%clk 0:01:08.4]} 58.
Qc2 {[%clk 0:00:33.7]} 58... Qa3 {[%clk 0:01:08.3]} 59. Qa2 {[%clk 0:00:32.1]}
59... Qb4 {[%clk 0:01:08.1]} 60. Qe2 {[%clk 0:00:30.6]} 60... Qa3 {[%clk
0:01:08.6]} 61. Qe4 {[%clk 0:00:31.3]} 61... Qc5 {[%clk 0:01:04.5]} 62. Qc4
{[%clk 0:00:31.3]} 62... Qg1+ {[%clk 0:01:04.1]} 63. Qc1 {[%clk 0:00:32.4]}
63... Qf2 {[%clk 0:01:04.5]} 64. Qc2 {[%clk 0:00:32.9]} 64... Qf1+ {[%clk
0:01:02.3]} 65. Rd1 {[%clk 0:00:34.4]} 65... Qa6 {[%clk 0:01:00.6]} 66. b4
{[%clk 0:00:34.9]} 66... Qb6 {[%clk 0:00:59.2]} 67. b5 {[%clk 0:00:35.8]} 67...
Qb7 {[%clk 0:01:00.7]} 68. Qb3 {[%clk 0:00:36.2]} 68... Qb6 {[%clk 0:00:58.9]}
69. Ka2 {[%clk 0:00:33.8]} 69... Qf2+ {[%clk 0:00:57.8]} 70. Kb1 {[%clk
0:00:35]} 70... Qb6 {[%clk 0:00:57.3]} 71. Rc1 {[%clk 0:00:35]} 71... Bg5 {[%clk
0:00:51.9]} 72. Rc6 {[%clk 0:00:35.2]} 72... Qg1+ {[%clk 0:00:52.7]} 73. Ka2
{[%clk 0:00:36.4]} 73... Qf2+ {[%clk 0:00:53.1]} 74. Rc2 {[%clk 0:00:37.9]}
74... Qb6 {[%clk 0:00:54]} 75. Qb4 {[%clk 0:00:38.9]} 75... Bd8 {[%clk
0:00:48.5]} 76. Qc3 {[%clk 0:00:38.2]} 76... Qe6+ {[%clk 0:00:48.1]} 77. Qb3
{[%clk 0:00:39.2]} 77... Qf6 {[%clk 0:00:49.2]} 78. Rc6 {[%clk 0:00:38.4]} 78...
Qf5 {[%clk 0:00:46.7]} 79. b6 {[%clk 0:00:38.9]} 79... Qd7 {[%clk 0:00:47.5]}
80. b7 {[%clk 0:00:38.5]} 80... Qxc6 {[%clk 0:00:42.5]} 81. b8=Q {[%clk
0:00:39.1]} 81... Bf6 {[%clk 0:00:43.8]} 82. Q8b5 {[%clk 0:00:39.4]} 82... Qc7
{[%clk 0:00:43.8]} 83. Q5c4 {[%clk 0:00:40.2]} 83... Qa7 {[%clk 0:00:41.5]} 84.
Qcc3 {[%clk 0:00:32]} 84... e4 {[%clk 0:00:41.3]} 85. Qcc2 {[%clk 0:00:30.7]}
85... Qg1 {[%clk 0:00:39.3]} 86. Qbb1 {[%clk 0:00:27.2]} 86... Qd4 {[%clk
0:00:40.2]} 87. fxe4 {[%clk 0:00:26.5]} 87... Be5 {[%clk 0:00:39.7]} 88. Qbd1
{[%clk 0:00:25.2]} 88... Qb4 {[%clk 0:00:39]} 89. Qd5 {[%clk 0:00:25.4]} 89...
Bc3 {[%clk 0:00:36.2]} 90. Qcb3 {[%clk 0:00:25.5]} 90... Qa5 {[%clk 0:00:33]}
91. Qxf7+ {[%clk 0:00:26.2]} 91... Kh6 {[%clk 0:00:34.1]} 92. Qf4+ {[%clk
0:00:26.9]} 92... Kg7 {[%clk 0:00:34.3]} 93. Qff7+ {[%clk 0:00:27.6]} 93... Kh6
{[%clk 0:00:35.7]} 94. Qfc4 {[%clk 0:00:28.8]} 94... Be5 {[%clk 0:00:35.2]} 95.
Qh3+ {[%clk 0:00:29.4]} 95... Kg7 {[%clk 0:00:36.4]} 96. Qd7+ {[%clk 0:00:28]}
96... Kh6 {[%clk 0:00:36.8]} 97. Qdd3 {[%clk 0:00:28.1]} 97... Qe1 {[%clk
0:00:30.8]} 98. Qb1 {[%clk 0:00:24.8]} 98... Qd2+ {[%clk 0:00:31.9]} 99. Qcc2
{[%clk 0:00:25]} 99... Qd4 {[%clk 0:00:32.5]} 100. Qbc1+ {[%clk 0:00:24.6]}
100... Kg7 {[%clk 0:00:31.1]} 101. Qb3 {[%clk 0:00:23.9]} 101... Qxe4 {[%clk
0:00:29.1]} 102. Qcc2 {[%clk 0:00:24.9]} 102... Qd4 {[%clk 0:00:29.9]} 103. Qbb1
{[%clk 0:00:22.5]} 103... Qd5+ {[%clk 0:00:30.5]} 104. Qcb3 {[%clk 0:00:23.5]}
104... Qd2+ {[%clk 0:00:31.6]} 105. Q1c2 {[%clk 0:00:24.5]} 105... Qd4 {[%clk
0:00:32.5]} 106. Qb7+ {[%clk 0:00:25.2]} 106... Kh6 {[%clk 0:00:33]} 107. Qh1+
{[%clk 0:00:26.5]} 107... Kg7 {[%clk 0:00:34.4]} 108. Qb7+ {[%clk 0:00:25.1]}
108... Kh6 {[%clk 0:00:35.3]} 109. Qbb1 {[%clk 0:00:25.5]} 109... Qd5+ {[%clk
0:00:35.9]} 110. Qcb3 {[%clk 0:00:25.8]} 110... Qd4 {[%clk 0:00:36.8]} 111. Qh1+
{[%clk 0:00:23.7]} 111... Kg7 {[%clk 0:00:37.9]} 112. Qbb7+ {[%clk 0:00:24.7]}
112... Kf6 {[%clk 0:00:39.2]} 113. Qf1+ {[%clk 0:00:21.8]} 113... Kg5 {[%clk
0:00:37.7]} 114. Qe7+ {[%clk 0:00:20.3]} 114... Kg4 {[%clk 0:00:28.8]} 115. Qe2+
{[%clk 0:00:20.2]} 115... Kh3 {[%clk 0:00:27.3]} 116. Qe6+ {[%clk 0:00:20.3]}
116... Kh4 {[%clk 0:00:25.2]} 117. Q6xe5 {[%clk 0:00:21.3]} 117... Qxa4+ {[%clk
0:00:26.5]} 118. Kb2 {[%clk 0:00:22.6]} 118... g5 {[%clk 0:00:22.7]} 119. Q5e4+
{[%clk 0:00:21.8]} 119... g4 {[%clk 0:00:23.3]} 120. Q2xg4# {[%clk 0:00:21.1]}
1-0

[Event "*** Titled Tuesday Blitz"]
[Site "Chess.com"]
[Date "2019.06.04"]
[Round "2"]
[White "Rish_97"]
[Black "chessturk1"]
[Result "1-0"]
[WhiteElo "2466"]
[BlackElo "2420"]
[TimeControl "180+2"]
[EndTime "13:17:15 PDT"]
[Termination "Rish_97 won by resignation"]

1. d4 {[%clk 0:03:01.9]} 1... Nf6 {[%clk 0:03:00.4]} 2. Bf4 {[%clk 0:03:00.2]}
2... d5 {[%clk 0:02:56.9]} 3. e3 {[%clk 0:02:59.3]} 3... e6 {[%clk 0:02:57.6]}
4. c3 {[%clk 0:02:59.6]} 4... Bd6 {[%clk 0:02:59]} 5. Bg3 {[%clk 0:02:59.9]}
5... O-O {[%clk 0:02:57.1]} 6. Nd2 {[%clk 0:03:01.1]} 6... b6 {[%clk 0:02:58.3]}
7. Ngf3 {[%clk 0:02:52.7]} 7... c5 {[%clk 0:02:59.2]} 8. Bd3 {[%clk 0:02:48.6]}
8... Ba6 {[%clk 0:02:55.9]} 9. Bxa6 {[%clk 0:02:44.8]} 9... Nxa6 {[%clk
0:02:57.8]} 10. O-O {[%clk 0:02:43.9]} 10... Bxg3 {[%clk 0:02:47.2]} 11. hxg3
{[%clk 0:02:45.8]} 11... Nd7 {[%clk 0:02:48.3]} 12. Qe2 {[%clk 0:02:45]} 12...
Nc7 {[%clk 0:02:49]} 13. a4 {[%clk 0:02:45.9]} 13... a6 {[%clk 0:02:44.9]} 14.
a5 {[%clk 0:02:44.3]} 14... b5 {[%clk 0:02:45.1]} 15. b4 {[%clk 0:02:44.8]}
15... cxb4 {[%clk 0:02:42.5]} 16. cxb4 {[%clk 0:02:46.7]} 16... Qe7 {[%clk
0:02:43.5]} 1-0

[Event "*** Titled Tuesday Blitz"]
[Site "Chess.com"]
[Date "2019.06.04"]
[Round "2"]
[White "adriangschnitzer"]
[Black "ftorodent"]
[Result "1-0"]
[WhiteElo "2469"]
[BlackElo "2484"]
[TimeControl "180+2"]
[EndTime "13:18:32 PDT"]
[Termination "adriangschnitzer won by resignation"]

1. e4 {[%clk 0:03:01.9]} 1... e6 {[%clk 0:02:59.9]} 2. d4 {[%clk 0:03:01.6]}
2... d5 {[%clk 0:03:00.6]} 3. Nd2 {[%clk 0:03:03]} 3... Be7 {[%clk 0:02:59]} 4.
Ngf3 {[%clk 0:03:02.2]} 4... Nf6 {[%clk 0:02:56.5]} 5. e5 {[%clk 0:02:59.6]}
5... Nfd7 {[%clk 0:02:57.3]} 6. Bd3 {[%clk 0:02:59.4]} 6... c5 {[%clk
0:02:57.5]} 7. c3 {[%clk 0:03:00.6]} 7... b6 {[%clk 0:02:58.4]} 8. O-O {[%clk
0:03:01.7]} 8... Bb7 {[%clk 0:02:59.7]} 9. b3 {[%clk 0:02:59]} 9... Ba6 {[%clk
0:03:01.6]} 10. Qe2 {[%clk 0:02:56.5]} 10... Bxd3 {[%clk 0:03:00.2]} 11. Qxd3
{[%clk 0:02:58.4]} 11... O-O {[%clk 0:03:01.3]} 12. Bb2 {[%clk 0:02:58.2]} 12...
cxd4 {[%clk 0:03:00.7]} 13. cxd4 {[%clk 0:02:54.9]} 13... Nc6 {[%clk 0:03:01.3]}
14. a3 {[%clk 0:02:53.7]} 14... Qc8 {[%clk 0:02:53.4]} 15. h3 {[%clk 0:02:53]}
15... Qb7 {[%clk 0:02:53.4]} 16. Nh2 {[%clk 0:02:53.5]} 16... Rae8 {[%clk
0:02:47.9]} 17. f4 {[%clk 0:02:53]} 17... f5 {[%clk 0:02:48.5]} 18. Rac1 {[%clk
0:02:39]} 18... Rc8 {[%clk 0:02:47.7]} 19. Rc2 {[%clk 0:02:36.6]} 19... Ncb8
{[%clk 0:02:40]} 20. Rfc1 {[%clk 0:02:36.3]} 20... Rc6 {[%clk 0:02:32.6]} 21.
Rxc6 {[%clk 0:02:25.5]} 21... Nxc6 {[%clk 0:02:33.4]} 22. Qc2 {[%clk 0:02:18.7]}
22... Re8 {[%clk 0:02:31.5]} 23. Qxc6 {[%clk 0:02:18]} 23... Rc8 {[%clk
0:02:33.4]} 1-0

[Event "*** Titled Tuesday Blitz"]
[Site "Chess.com"]
[Date "2019.06.04"]
[Round "2"]
[White "quesfr"]
[Black "levallem"]
[Result "1-0"]
[WhiteElo "2179"]
[BlackElo "2265"]
[TimeControl "180+2"]
[EndTime "13:18:36 PDT"]
[Termination "quesfr won by resignation"]

1. e4 {[%clk 0:02:59.1]} 1... c6 {[%clk 0:03:00]} 2. d4 {[%clk 0:02:59.7]} 2...
d5 {[%clk 0:03:01.5]} 3. e5 {[%clk 0:03:01.2]} 3... Bf5 {[%clk 0:03:02]} 4. h4
{[%clk 0:03:02.3]} 4... h5 {[%clk 0:03:02.5]} 5. Bd3 {[%clk 0:03:03.4]} 5...
Bxd3 {[%clk 0:03:02.7]} 6. Qxd3 {[%clk 0:03:05.3]} 6... e6 {[%clk 0:03:03.5]} 7.
Bg5 {[%clk 0:03:06.4]} 7... Ne7 {[%clk 0:02:59]} 8. Ne2 {[%clk 0:02:58.2]} 8...
Qb6 {[%clk 0:02:59.5]} 9. Nd2 {[%clk 0:02:40.6]} 9... Nd7 {[%clk 0:02:54.2]} 10.
c4 {[%clk 0:02:35.8]} 10... dxc4 {[%clk 0:02:41.3]} 11. Nxc4 {[%clk 0:02:34]}
11... Qb4+ {[%clk 0:02:25]} 12. Bd2 {[%clk 0:02:34.4]} 12... Qa4 {[%clk
0:02:17.6]} 13. b3 {[%clk 0:02:26.6]} 13... Qa6 {[%clk 0:02:12.2]} 14. Nd6+
{[%clk 0:02:25.9]} 14... Kd8 {[%clk 0:02:13.4]} 15. Qxa6 {[%clk 0:02:24.1]}
15... bxa6 {[%clk 0:02:13.2]} 16. Nxf7+ {[%clk 0:02:26]} 16... Ke8 {[%clk
0:02:09.3]} 17. Nxh8 {[%clk 0:02:27.9]} 17... g6 {[%clk 0:02:10.6]} 18. Nf4
{[%clk 0:02:21.9]} 18... Bg7 {[%clk 0:02:05.2]} 19. Nhxg6 {[%clk 0:02:21.4]}
19... Kf7 {[%clk 0:02:06.4]} 20. Nxe7 {[%clk 0:02:20.2]} 20... Kxe7 {[%clk
0:02:08.3]} 21. Nxh5 {[%clk 0:02:20.3]} 21... Bh8 {[%clk 0:02:08.7]} 22. Bg5+
{[%clk 0:02:19.1]} 1-0

[Event "*** Titled Tuesday Blitz"]
[Site "Chess.com"]
[Date "2019.06.04"]
[Round "2"]
[White "Ginger_GM"]
[Black "Ar4uha"]
[Result "1-0"]
[WhiteElo "2554"]
[BlackElo "2513"]
[TimeControl "180+2"]
[EndTime "13:18:43 PDT"]
[Termination "Ginger_GM won by resignation"]

1. d4 {[%clk 0:03:01.9]} 1... Nf6 {[%clk 0:03:00.9]} 2. Nf3 {[%clk 0:02:57.1]}
2... e6 {[%clk 0:03:02.8]} 3. Bg5 {[%clk 0:02:57.2]} 3... c5 {[%clk 0:03:01.7]}
4. d5 {[%clk 0:02:56.9]} 4... h6 {[%clk 0:02:55]} 5. Bxf6 {[%clk 0:02:57.7]}
5... Qxf6 {[%clk 0:02:56.9]} 6. Nc3 {[%clk 0:02:57.9]} 6... g5 {[%clk
0:02:49.7]} 7. e4 {[%clk 0:02:54.1]} 7... g4 {[%clk 0:02:50]} 8. Nd2 {[%clk
0:02:34]} 8... Bg7 {[%clk 0:02:47.2]} 9. Qxg4 {[%clk 0:02:29]} 9... h5 {[%clk
0:02:43.2]} 10. Qf3 {[%clk 0:02:21.9]} 10... Qxf3 {[%clk 0:02:43.2]} 11. Nxf3
{[%clk 0:02:13]} 11... Ke7 {[%clk 0:02:19.4]} 12. e5 {[%clk 0:02:04.5]} 12... d6
{[%clk 0:02:09.5]} 13. exd6+ {[%clk 0:01:57.5]} 13... Kxd6 {[%clk 0:02:11.4]}
14. Nb5+ {[%clk 0:01:52.4]} 14... Kd7 {[%clk 0:02:07.5]} 15. dxe6+ {[%clk
0:01:51.6]} 15... fxe6 {[%clk 0:02:09.4]} 16. O-O-O+ {[%clk 0:01:51.4]} 1-0

[Event "*** Titled Tuesday Blitz"]
[Site "Chess.com"]
[Date "2019.06.04"]
[Round "2"]
[White "irregularity"]
[Black "Naruto-K"]
[Result "1-0"]
[WhiteElo "2607"]
[BlackElo "2396"]
[TimeControl "180+2"]
[EndTime "13:19:15 PDT"]
[Termination "irregularity won by resignation"]

1. e4 {[%clk 0:03:01.9]} 1... e6 {[%clk 0:02:58.1]} 2. d4 {[%clk 0:03:02.7]}
2... d5 {[%clk 0:02:59.3]} 3. exd5 {[%clk 0:03:04.6]} 3... exd5 {[%clk
0:02:58.7]} 4. Nc3 {[%clk 0:03:06.5]} 4... Nf6 {[%clk 0:02:59.2]} 5. Bg5 {[%clk
0:03:07.2]} 5... Bb4 {[%clk 0:02:57.4]} 6. Bd3 {[%clk 0:03:08.2]} 6... O-O
{[%clk 0:02:53.8]} 7. Ne2 {[%clk 0:03:09.1]} 7... c6 {[%clk 0:02:54.5]} 8. Qd2
{[%clk 0:03:10.2]} 8... Bg4 {[%clk 0:02:54.4]} 9. f3 {[%clk 0:03:11]} 9... Bh5
{[%clk 0:02:55.3]} 10. O-O-O {[%clk 0:03:12.3]} 10... Nbd7 {[%clk 0:02:53.7]}
11. Nf4 {[%clk 0:03:13.5]} 11... Bg6 {[%clk 0:02:54.4]} 12. Nxg6 {[%clk
0:03:14.6]} 12... fxg6 {[%clk 0:02:50.9]} 13. a3 {[%clk 0:03:15.7]} 13... Bd6
{[%clk 0:02:50.9]} 14. h4 {[%clk 0:03:16.7]} 14... Qc7 {[%clk 0:02:49.5]} 15. g4
{[%clk 0:03:14.1]} 15... b5 {[%clk 0:02:43]} 16. h5 {[%clk 0:03:10.7]} 16...
gxh5 {[%clk 0:02:37.3]} 17. gxh5 {[%clk 0:03:11.2]} 17... h6 {[%clk 0:02:38.6]}
18. Be3 {[%clk 0:02:45.4]} 18... Rae8 {[%clk 0:02:38.4]} 19. Ne2 {[%clk
0:02:45.7]} 19... a5 {[%clk 0:02:20.8]} 20. Rdg1 {[%clk 0:02:44.9]} 20... Rxe3
{[%clk 0:02:08]} 21. Qxe3 {[%clk 0:02:40.7]} 21... Kh8 {[%clk 0:02:05.4]} 22.
Rxg7 {[%clk 0:02:37.5]} 22... Kxg7 {[%clk 0:01:57.5]} 23. Rg1+ {[%clk
0:02:38.5]} 23... Kf7 {[%clk 0:01:58.3]} 24. Bg6+ {[%clk 0:02:39.1]} 24... Kg7
{[%clk 0:01:59]} 25. Bf5+ {[%clk 0:02:38.5]} 25... Bg3 {[%clk 0:01:55.9]} 26.
Rxg3+ {[%clk 0:02:39.2]} 26... Qxg3 {[%clk 0:01:57.1]} 27. Nxg3 {[%clk
0:02:40.5]} 27... Re8 {[%clk 0:01:58.6]} 28. Qf4 {[%clk 0:02:41]} 28... Re1+
{[%clk 0:01:57]} 29. Kd2 {[%clk 0:02:42]} 29... Rg1 {[%clk 0:01:50.7]} 30. Bxd7
{[%clk 0:02:41.9]} 30... Nxd7 {[%clk 0:01:51.5]} 31. Qg4+ {[%clk 0:02:42.1]}
31... Kf6 {[%clk 0:01:51.5]} 32. Qxd7 {[%clk 0:02:42.9]} 32... Rxg3 {[%clk
0:01:52.9]} 33. Qd6+ {[%clk 0:02:44.2]} 1-0

[Event "*** Titled Tuesday Blitz"]
[Site "Chess.com"]
[Date "2019.06.04"]
[Round "2"]
[White "jk13"]
[Black "olksuna"]
[Result "1-0"]
[WhiteElo "2547"]
[BlackElo "2491"]
[TimeControl "180+2"]
[EndTime "13:19:29 PDT"]
[Termination "jk13 won by resignation"]

1. e4 {[%clk 0:03:01.9]} 1... c5 {[%clk 0:03:00.5]} 2. c3 {[%clk 0:03:02]} 2...
Nf6 {[%clk 0:03:00]} 3. e5 {[%clk 0:03:02.1]} 3... Nd5 {[%clk 0:03:01.1]} 4. Bc4
{[%clk 0:03:04]} 4... Nb6 {[%clk 0:03:01.1]} 5. Bb3 {[%clk 0:03:05.6]} 5... Nc6
{[%clk 0:03:01.9]} 6. Nf3 {[%clk 0:03:07]} 6... d5 {[%clk 0:03:01.5]} 7. exd6
{[%clk 0:03:08.9]} 7... Qxd6 {[%clk 0:03:01.6]} 8. O-O {[%clk 0:03:10.4]} 8...
Bf5 {[%clk 0:02:55.1]} 9. d4 {[%clk 0:03:10.5]} 9... cxd4 {[%clk 0:02:53.5]} 10.
Nxd4 {[%clk 0:03:12.4]} 10... Nxd4 {[%clk 0:02:52.8]} 11. cxd4 {[%clk
0:03:14.3]} 11... e6 {[%clk 0:02:51.7]} 12. Qf3 {[%clk 0:03:14.9]} 12... Qc6
{[%clk 0:02:46.4]} 13. Qg3 {[%clk 0:03:05.5]} 13... h5 {[%clk 0:02:38.1]} 14. h4
{[%clk 0:02:58.5]} 14... Bd6 {[%clk 0:02:38.9]} 15. Bf4 {[%clk 0:02:53.8]} 15...
Bxf4 {[%clk 0:02:26.5]} 16. Qxf4 {[%clk 0:02:55.7]} 16... O-O {[%clk 0:02:24.9]}
17. Nc3 {[%clk 0:02:56.5]} 17... Rad8 {[%clk 0:02:23.9]} 18. d5 {[%clk
0:02:52.2]} 18... Qd6 {[%clk 0:01:43.8]} 19. Qg5 {[%clk 0:02:53]} 19... Bg4
{[%clk 0:01:12.1]} 20. Ne4 {[%clk 0:02:53.7]} 20... Qb4 {[%clk 0:01:04.2]} 21.
Nf6+ {[%clk 0:02:53.7]} 21... Kh8 {[%clk 0:01:05.4]} 22. Nxh5 {[%clk 0:02:54.2]}
22... Rg8 {[%clk 0:00:53.2]} 23. Nf4 {[%clk 0:02:48]} 1-0

[Event "*** Titled Tuesday Blitz"]
[Site "Chess.com"]
[Date "2019.06.04"]
[Round "2"]
[White "Khanya_Mazibuko"]
[Black "Vusatiuk_Vladimir"]
[Result "0-1"]
[WhiteElo "2205"]
[BlackElo "2223"]
[TimeControl "180+2"]
[EndTime "13:19:33 PDT"]
[Termination "Vusatiuk_Vladimir won by resignation"]

1. d3 {[%clk 0:03:01]} 1... Nf6 {[%clk 0:02:56.4]} 2. e4 {[%clk 0:03:00.6]} 2...
d5 {[%clk 0:02:45.8]} 3. e5 {[%clk 0:03:00]} 3... Nfd7 {[%clk 0:02:46.9]} 4. f4
{[%clk 0:02:58.9]} 4... e6 {[%clk 0:02:44.4]} 5. Nf3 {[%clk 0:02:59.3]} 5... c5
{[%clk 0:02:45.6]} 6. g3 {[%clk 0:02:58.5]} 6... b6 {[%clk 0:02:45.5]} 7. Bg2
{[%clk 0:02:59.6]} 7... Bb7 {[%clk 0:02:45.1]} 8. O-O {[%clk 0:03:01]} 8... d4
{[%clk 0:02:45]} 9. c3 {[%clk 0:03:00.3]} 9... dxc3 {[%clk 0:02:45.6]} 10. Nxc3
{[%clk 0:02:59.9]} 10... Nc6 {[%clk 0:02:46.5]} 11. d4 {[%clk 0:02:59.8]} 11...
Nxd4 {[%clk 0:02:41.2]} 12. Kh1 {[%clk 0:02:55.2]} 12... Nxf3 {[%clk 0:02:38.1]}
13. Bxf3 {[%clk 0:02:56.7]} 13... Bxf3+ {[%clk 0:02:28.8]} 14. Qxf3 {[%clk
0:02:58.6]} 14... Be7 {[%clk 0:02:30.2]} 15. Rd1 {[%clk 0:02:53.3]} 15... Qc8
{[%clk 0:02:17]} 16. Qd3 {[%clk 0:02:31.1]} 16... Nb8 {[%clk 0:02:03.4]} 17. Ne4
{[%clk 0:02:21.4]} 17... O-O {[%clk 0:01:58.8]} 18. Nd6 {[%clk 0:02:17.5]} 18...
Bxd6 {[%clk 0:01:30]} 19. Qxd6 {[%clk 0:02:09.9]} 19... Nc6 {[%clk 0:01:28.7]}
20. Be3 {[%clk 0:02:08.7]} 20... Rd8 {[%clk 0:01:26.4]} 0-1

[Event "*** Titled Tuesday Blitz"]
[Site "Chess.com"]
[Date "2019.06.04"]
[Round "2"]
[White "Manukyan_Artak"]
[Black "Valuebet2000"]
[Result "0-1"]
[WhiteElo "2403"]
[BlackElo "2540"]
[TimeControl "180+2"]
[EndTime "13:20:01 PDT"]
[Termination "Valuebet2000 won by resignation"]

1. e4 {[%clk 0:03:01.9]} 1... c6 {[%clk 0:03:00.6]} 2. d4 {[%clk 0:03:02.5]}
2... d5 {[%clk 0:03:02.5]} 3. e5 {[%clk 0:03:03.8]} 3... Bf5 {[%clk 0:03:01.7]}
4. c4 {[%clk 0:03:04.2]} 4... e6 {[%clk 0:03:02.2]} 5. Nc3 {[%clk 0:03:05.6]}
5... Ne7 {[%clk 0:03:01.6]} 6. Qb3 {[%clk 0:03:05.8]} 6... Qb6 {[%clk
0:02:58.7]} 7. c5 {[%clk 0:03:06.9]} 7... Qc7 {[%clk 0:02:56.4]} 8. f4 {[%clk
0:03:06.7]} 8... b6 {[%clk 0:02:55.5]} 9. cxb6 {[%clk 0:03:06.1]} 9... axb6
{[%clk 0:02:56.5]} 10. Be3 {[%clk 0:03:07.5]} 10... Nd7 {[%clk 0:02:41.2]} 11.
Nf3 {[%clk 0:03:07.8]} 11... Bg4 {[%clk 0:02:34.3]} 12. Be2 {[%clk 0:03:08.5]}
12... Nf5 {[%clk 0:02:35.3]} 13. Bf2 {[%clk 0:03:09.7]} 13... h5 {[%clk
0:02:30.7]} 14. O-O {[%clk 0:03:10.1]} 14... Be7 {[%clk 0:02:31.1]} 15. Rfc1
{[%clk 0:03:10.4]} 15... Qb7 {[%clk 0:02:28.6]} 16. a3 {[%clk 0:02:58.2]} 16...
O-O {[%clk 0:02:25.7]} 17. g3 {[%clk 0:02:55.3]} 17... Rfc8 {[%clk 0:02:23]} 18.
Kg2 {[%clk 0:02:55]} 18... c5 {[%clk 0:02:19.8]} 19. Nb5 {[%clk 0:02:55.5]}
19... Ra5 {[%clk 0:02:00.8]} 20. h3 {[%clk 0:02:45.1]} 20... Bxf3+ {[%clk
0:01:58]} 21. Bxf3 {[%clk 0:02:46.3]} 21... c4 {[%clk 0:01:58.2]} 22. Rxc4
{[%clk 0:02:38.9]} 22... Rxc4 {[%clk 0:01:40.6]} 23. Qxc4 {[%clk 0:02:39.5]}
23... dxc4 {[%clk 0:01:41.6]} 24. Bxb7 {[%clk 0:02:41.1]} 24... Rxb5 {[%clk
0:01:43]} 25. Bc6 {[%clk 0:02:42.6]} 25... Rxb2 {[%clk 0:01:36.7]} 26. Bxd7
{[%clk 0:02:43.7]} 26... Nxd4 {[%clk 0:01:31.2]} 27. Kf1 {[%clk 0:02:28.9]}
27... Bc5 {[%clk 0:01:23.4]} 28. Rc1 {[%clk 0:02:17.2]} 28... Rxf2+ {[%clk
0:01:21.4]} 29. Kxf2 {[%clk 0:02:17.5]} 29... Nb3+ {[%clk 0:01:22.6]} 0-1